[Event "Silves Open 2025"]
[Site "Fissul"]
[Date "2025.03.03"]
[Round "4.13"]
[White "Goncalves, Diogo Figueiredo"]
[Black "Rasti, Arvin"]
[Result "1/2-1/2"]
[Annotator "TA"]
[ECO "E68"]
[WhiteElo "1985"]
[BlackElo "2232"]
[PlyCount "88"]
[EventDate "2025.03.03"]
[EventType "swiss"]
[EventCountry "POR"]
[SourceTitle "playchess.com"]
[Source "ChessBase"]
[SourceQuality "1"]
[TimeControl "5400+30"]

{[%evp 23,88,17,41,53,62,56,72,74,66,64,107,101,119,119,243,134,186,141,168,171,315,219,211,219,427,418,404,414,416,409,392,295,1470,248,245,258,239,157,159,161,160,167,223,81,76,0,164,68,68,74,62,74,77,77,80,26,18,8,11,0,0,0,8,8,0,0,0]} 1. c4 {[%emt 1:31:00]} Nf6 {[%emt 1:31:00]} 2. g3 {[%emt 0:00:30]} g6 {[%emt 0:00:30]} 3. Bg2 {[%emt 0:00:30]} Bg7 {[%emt 0:00:30]} 4. Nc3 {[%emt 0:00:30]} O-O {[%emt 0:00:30]} 5. d4 {[%emt 0:00:30]} d6 {[%emt 0:00:30]} 6. h3 {[%emt 0:00:30]} Nbd7 {[%emt 0:00:30]} 7. Nf3 {[%emt 0:00:30][%cal Bg1f3,Bf3d4,Bd4b5][%mdl 32]} e5 {[%emt 0:00:30]} 8. e4 {[%emt 0:00:30]} exd4 {[%emt 0:00:30]} 9. Nxd4 {[%emt 0:00:30]} Nc5 {[%emt 0:00:30]} 10. O-O {[%emt 0:00:30]} Re8 {[%emt 0:00:30]} 11. Re1 {[%emt 0:00:30]} a5 {[%emt 0:00:30]} 12. Ndb5 {[%emt 0:00:30]} Bd7 {[%emt 0:00:30]} 13. Bf4 {[%emt 0:00:30][%cal Ob5c7] E68: King's Indian: Fianchetto: 6...Nbd7 7 0-0 e5 8 e4.} Bc6 {[%emt 0:00:30][%cal Rf6e4]} 14. Qc2 {[%emt 0:00:30]} Nfd7 {[%emt 0:00:30]} 15. Rad1 {[%emt 0:00:30] White is better.} h5 $146 {[%emt 0:00:30]} (15... Ne5 16. Nd5 Rc8 17. b3 Bxb5 18. cxb5 c6 19. bxc6 bxc6 20. Ne3 Qc7 21. Nc4 Nxc4 22. Qxc4 {0-1 Halkias,S (2567)-Naroditsky,D (2621) Titled Tuesday intern op 30th Mar blitz 2021 (2)}) 16. Be3 {[%emt 0:00:30]} Qc8 {[%emt 0:00:30]} 17. f4 {[%emt 0:00:30][%cal Bf2f4,Bf4f5][%mdl 32]} Nb6 {[%emt 0:00:30]} 18. b3 {[%emt 0:00:30][%cal Oe4e5]} Bd7 {[%emt 0:00:30]} (18... Nbd7 $16 19. Kh2 Qd8) 19. Kh2 {[%emt 0:00:30]} (19. e5 $1 $18) 19... Bf8 {[%emt 0:00:30]} (19... Bxb5 $16 20. Nxb5 Nbd7) 20. Bf2 {[%emt 0:00:30]} Bc6 {[%emt 0:00:30]} 21. f5 {[%emt 0:00:30]} Nbd7 {[%emt 0:00:30]} (21... Bxb5 22. cxb5 (22. Nxb5 Nbd7 $16) 22... gxf5 23. exf5 Rxe1) 22. Nd5 {[%emt 0:00:30]} Bxd5 {[%emt 0:00:30]} 23. exd5 {[%emt 0:00:30]} (23. cxd5 $6 Ne5 $16) 23... Ne5 {[%emt 0:00:30]} (23... Rxe1 {is a better defense.} 24. Rxe1 f6 25. fxg6 h4) 24. fxg6 $18 {[%emt 0:00:30]} fxg6 {[%emt 0:00:30]} 25. Bxc5 {[%emt 0:00:30]} dxc5 {[%emt 0:00:30]} 26. d6 {[%emt 0:00:30]} cxd6 {[%emt 0:00:30]} 27. Nxd6 {[%emt 0:00:30] Rxe5 is the strong threat.} Bxd6 {[%emt 0:00:30]} (27... Qc7) 28. Rxd6 $2 {[%emt 0:00:30]} (28. Rxe5 Rxe5 29. Qxg6+ (29. Rxd6 Qf5 $17) 29... Kh8 30. Qh6+ (30. Rxd6 Qf5 $14) (30. Qxd6 Qe6 $11) 30... Kg8 31. Rxd6) 28... Qf5 {[%emt 0:00:30]} 29. Qxf5 gxf5 30. Bxb7 {[%emt 0:01:00]} Ra7 {[%emt 0:01:00] [#]} 31. Bd5+ {[%emt 0:00:30]} Kg7 {[%emt 0:00:30]} 32. Rf1 {[%emt 0:00:30] Wards off Nf3+. White is more active.} Rf8 {[%emt 0:00:30]} (32... Nf7 $142 33. Rc6 Re2+ 34. Kg1 Rxa2 35. Rxf5 (35. Rxc5 Nh6 $18) 35... Rb2 36. Rxh5 (36. Rxc5 Rxb3 37. Bxf7 Rxf7 $16) 36... Re7) 33. Be6 {[%emt 0:00:30]} (33. Re6 $18 {has better winning chances.} Ng6 34. Rc6) 33... Re7 $16 {[%emt 0:00:30]} 34. Bd5 {[%emt 0:00:30]} (34. Rxf5 $2 Rxe6 35. Rxe6 Rxf5 $19) (34. Ra6 $16) 34... Ng6 $2 {[%emt 0:00:30] [#]} (34... Ra7 $1 $11 {and Black has nothing to worry.}) 35. Re6 {[%emt 0:00:30]} (35. Bf3 $1 $18) 35... Rxe6 $14 {[%emt 0:00:30]} 36. Bxe6 {[%emt 0:00:30][%mdl 4096] Endgame KRB-KRN. White is a pawn up.} Re8 {[%emt 0:00:30]} 37. Bxf5 {[%emt 0:00:30]} Re2+ {[%emt 0:00:30]} 38. Kg1 {[%emt 0:00:30]} Rxa2 {[%emt 0:00:30]} 39. Rf2 {[%emt 0:00:30]} (39. Be4 $16) 39... Ra3 $11 {[%emt 0:00:30]} 40. Rb2 {[%emt 0:00:30] The position is equal.} Ne5 {[%emt 0:00:30]} 41. Kf2 {[%emt 0:00:30]} a4 {[%emt 0:00:30]} 42. Bc2 ({Much weaker is} 42. Re2 Kf6 43. Be4 Rxb3 $17 (43... axb3 $2 44. Rd2 $19)) 42... axb3 {[%emt 0:00:30]} 43. Rxb3 {[%emt 0:01:00]} Nxc4 {[%emt 0:00:30]} 44. Rxa3 {[%emt 0:00:30]} Nxa3 {[%emt 0:00:30] Black defended with fortune.   Weighted Error Value: White=0.41/Black=0.49  Loses game:     	---       	Black=1      Mistake:       	White=6     	Black=6      Inaccurate:     	White=2     	Black=1      OK:         	White=13    	Black=13     Best:        	White=1     	Black=1} 1/2-1/2

[Event "Silves Open 2025"]
[Site "Fissul"]
[Date "2025.03.03"]
[Round "4.14"]
[White "Monteiro, Paulo Alexandre G"]
[Black "Silva, Ana Ines Teixeira Da"]
[Result "1-0"]
[Annotator "TA"]
[ECO "D37"]
[WhiteElo "2221"]
[BlackElo "1901"]
[PlyCount "77"]
[EventDate "2025.03.03"]
[EventType "swiss"]
[EventCountry "POR"]
[SourceTitle "playchess.com"]
[Source "ChessBase"]
[SourceQuality "1"]
[TimeControl "5400+30"]

{[%evp 9,77,33,31,29,36,36,31,31,31,29,37,39,44,41,47,39,66,53,54,59,62,73,129,130,120,124,113,105,102,95,151,154,256,258,252,258,236,250,279,285,281,252,453,460,498,478,730,739,735,745,866,839,768,620,758,749,970,940,1823,752,29965,29968,29962,29966,29969,29971,29968,5269,29976,29975]} 1. d4 {[%emt 0:02:33]} d5 {[%emt 0:03:00]} 2. c4 {[%emt 0:00:14]} e6 {[%emt 0:00:16]} 3. Nc3 {[%emt 0:00:06]} h6 {[%emt 0:00:26]} 4. Nf3 {[%emt 0:00:44]} Nf6 {[%emt 0:00:10]} 5. Bf4 {[%emt 0:00:17]} Bd6 {[%emt 0:00:48]} 6. Bxd6 {[%emt 0:00:23] D37: Queen's Gambit Declined: 5 Bf4.} Qxd6 {[%emt 0:00:09]} 7. e3 {[%emt 0:00:33]} O-O {[%emt 0:01:47]} 8. c5 {[%emt 0:01:03] White is slightly better.} Qe7 {[%emt 0:01:24]} 9. b4 {[%emt 0:00:50][%cal Bb2b4,Bb4b5][%mdl 32]} Nbd7 {[%emt 0:26:07]} 10. Be2 {[%emt 0:03:06]} c6 {[%emt 0:11:56]} 11. b5 {[%emt 0:01:39]} e5 {[%emt 0:04:36]} 12. O-O {[%emt 0:01:36]} exd4 {[%emt 0:07:00]} 13. exd4 {[%emt 0:00:18]} Ne4 {[%emt 0:03:17]} 14. Rc1 {[%emt 0:01:00]} Re8 $146 {[%emt 0:04:29] [#] Hoping for ...Nxc3.} (14... Ndf6 15. bxc6 bxc6 16. Ne5 Qc7 17. Nxe4 Nxe4 18. Qa4 Bd7 19. Bd3 Nf6 20. Rb1 Rab8 {1-0 Sevcikova,L (2047)-Hoanca,A (1830) Wch U18 Girls 2023 (2)}) 15. Re1 {[%emt 0:08:38]} Nf8 {[%emt 0:12:48] White leaves nothing to chance now.} ({Black should try} 15... Ndf6) 16. bxc6 $16 {[%emt 0:14:05]} bxc6 {[%emt 0:00:33]} 17. Nxe4 {[%emt 0:01:29]} dxe4 {[%emt 0:01:39]} 18. Ne5 {[%emt 0:00:50]} Qg5 {[%emt 0:13:52]} 19. Rc3 {[%emt 0:09:27]} Be6 {[%emt 0:03:56]} (19... Ng6 $142) 20. Nxc6 {[%emt 0:10:08][%csl Oc5] White has a strong passed pawn} Bxa2 {[%emt 0:00:23]} (20... Bd5 $16 21. Nb4 Red8) 21. Nb4 {[%emt 0:04:53]} Bd5 {[%emt 0:01:20]} 22. Nxd5 {[%emt 0:03:56]} Qxd5 {[%emt 0:00:05]} 23. Bc4 {[%emt 0:00:14]} Qd8 {[%emt 0:01:05]} 24. d5 {[%emt 0:07:57][%cal Bd4d5,Bd5d6,Bd6d7][%mdl 32]} Qf6 {[%emt 0:00:25]} 25. Rc1 {[%emt 0:04:08]} Ng6 $2 {[%emt 0:00:39]} (25... Rac8 26. d6 Rcd8) 26. d6 $18 {[%emt 0:01:20]} Rad8 {[%emt 0:00:36]} 27. d7 {[%emt 0:03:48]} Re5 {[%emt 0:00:29] [#]} (27... Rf8 $142 28. Bb5 (28. Rxe4 Qc6 $18) 28... Qf4) 28. c6 $1 {[%emt 0:01:05][%mdl 512] and c7 would now be decisive} Nf8 {[%emt 0:00:42]} 29. c7 {[%emt 0:01:25]} Nxd7 {[%emt 0:00:30]} 30. cxd8=Q+ {[%emt 0:00:30]} Qxd8 {[%emt 0:00:03]} 31. Qd6 {[%emt 0:01:07]} Qe8 {[%emt 0:00:38]} 32. Ba2 {[%emt 0:05:13]} e3 {[%emt 0:00:37]} 33. fxe3 {[%emt 0:00:25]} Rxe3 {[%emt 0:00:38]} 34. Qd2 {[%emt 0:00:21]} Re7 {[%emt 0:00:29]} 35. Rxe7 {[%emt 0:00:27]} Qxe7 {[%emt 0:00:03]} 36. Rc7 {[%emt 0:01:41][%csl LRa7,LRd7]} Qe5 {[%emt 0:00:22]} 37. Bxf7+ {[%emt 0:00:55]} Kxf7 {[%emt 0:00:30]} 38. Rxd7+ {[%emt 0:00:07]} (38. Qxd7+ $142 Kg6 39. Qc6+ (39. Rxa7 $2 Qe1#) (39. Qd3+ Kf6 $18) 39... Kh7 40. Qc2+ (40. Rxa7 $2 Qe1#) 40... Kg8 41. Rc8+ (41. Rxa7 $2 Qe1#) 41... Kf7 42. Qc7+ Qxc7 43. Rxc7+ Kf6 44. Rxa7) 38... Kg8 {[%emt 0:00:27]} 39. Qd5+ {[%emt 0:00:09] Weighted Error Value: White=0.34/Black=1.02  Mistake:       	---       	Black=5      Inaccurate:     	---       	Black=1      OK:         	White=15    	Black=4      Best:        	White=1     	Black=2} ({Weaker is} 39. Rxa7 Qc5+ 40. Kf1 (40. Qf2 Qc1+ 41. Qf1 Qe3+ 42. Kh1 Qxa7 $11) 40... Qxa7 $11) 1-0

[Event "Silves Open 2025"]
[Site "Fissul"]
[Date "2025.03.03"]
[Round "4.15"]
[White "Santos, Antonio P"]
[Black "Albuquerque, Eduardo Ferreira"]
[Result "1/2-1/2"]
[Annotator "TA"]
[ECO "E36"]
[WhiteElo "2209"]
[BlackElo "1897"]
[PlyCount "124"]
[EventDate "2025.03.03"]
[EventType "swiss"]
[EventCountry "POR"]
[SourceTitle "playchess.com"]
[Source "ChessBase"]
[SourceQuality "1"]
[TimeControl "5400+30"]

{[%evp 15,124,6,-7,-15,-10,-27,-19,-25,-20,-29,0,0,0,-16,15,8,13,9,10,0,0,0,14,12,10,-6,0,0,4,4,4,6,3,0,20,16,17,0,14,11,14,8,16,10,47,8,21,14,63,39,70,70,66,69,77,51,153,160,237,192,186,195,263,263,253,258,251,243,296,293,271,306,757,787,787,766,685,679,510,42,42,42,49,44,58,-7,0,-18,-18,-27,-18,-50,-50,-50,-50,-50,-50,-50,-24,-25,-25,-50,-50,-50,0,-8,-8,-8,0,-8,0]} 1. d4 {[%emt 1:31:00]} Nf6 {[%emt 1:31:00]} 2. c4 {[%emt 0:00:30]} e6 {[%emt 0:00:30]} 3. Nf3 {[%emt 0:00:30]} Bb4+ {[%emt 0:00:30]} 4. Nbd2 {[%emt 0:00:30]} O-O {[%emt 0:00:30]} 5. a3 {[%emt 0:00:30]} Bxd2+ {[%emt 0:00:30]} 6. Qxd2 {[%emt 0:00:30]} d5 {[%emt 0:00:30]} 7. Qc2 {[%emt 0:00:30]} dxc4 {[%emt 0:00:30]} 8. Qxc4 {[%emt 0:00:30]} b6 {[%emt 0:00:30]} 9. g3 {[%emt 0:00:30] E36: Nimzo-Indian: Classical: 4...d5 5 a3.} Ba6 {[%emt 0:00:30] 9...Bb7 is not played anymore.} 10. Qc2 {[%emt 0:00:30]} Bb7 {[%emt 0:00:30]} 11. Bg2 {[%emt 0:00:30]} Nbd7 {[%emt 0:00:30][%cal Bb8d7,Bd7c5,Bc5b3][%mdl 32]} 12. b4 {[%emt 0:00:30]} c5 {[%emt 0:00:30]} 13. dxc5 {[%emt 0:00:30]} bxc5 {[%emt 0:00:30]} 14. bxc5 $146 {[%emt 0:00:30]} (14. O-O Rc8 15. Qb2 c4 16. Qd4 Qb6 17. Bb2 Bd5 18. Rac1 Qb7 19. Rfd1 Rfe8 20. Ne1 Bxg2 21. Nxg2 {1-0 Sumets,A (2614)-Bellaiche,A (2442) FRA-chT Top 16 Gp Basse 2010 (11.1)}) 14... Qa5+ {[%emt 0:00:30]} 15. Bd2 {[%emt 0:00:30]} Qxc5 {[%emt 0:00:30]} 16. Qxc5 {[%emt 0:00:30]} Nxc5 {[%emt 0:00:30]} 17. O-O {[%emt 0:00:30] The position is symmetric and equal} Nb3 {[%cal Ob7f3] A dynamic duo of knights.} 18. Ra2 {[%cal Ba1a2,Ba2b2,Bb2b3][%mdl 32]} Rfc8 19. Be3 a5 20. a4 Bd5 21. Rb2 Rab8 22. Ne5 Bxg2 23. Kxg2 Nd5 24. Ba7 Ra8 {[%cal Bb8a8,Ba8a7,Ba7b7][%mdl 32]} 25. Rxb3 Rxa7 26. Rfb1 (26. Rc1 $5 Rca8 (26... Nf4+ $2 27. gxf4 Rca8 28. Rbc3 $18) 27. Rc5 $16) 26... Nb4 27. Nd3 Rb7 28. Nxb4 Rcb8 $1 {[#]} 29. Kf3 $1 {[%cal Of3e3]} axb4 $11 {[%mdl 4096] Endgame KRR-KRR} (29... Kf8 30. R1b2) 30. Ke3 Kf8 31. Kd2 Ke7 (31... Rd7+ $11 32. Ke1 Rdb7) 32. Kc2 $14 f6 33. Rd3 e5 34. Kb3 {White is more active.} Rc7 35. Rb2 Rc6 (35... e4 $14 36. Re3 Kf7 (36... f5 37. g4 $14)) 36. Rc2 $16 Rcb6 (36... Rxc2 37. Kxc2 g6 38. Kb3) (36... Ra6 $16 37. Rc7+ Ke6) 37. Rc5 R6b7 38. Rdd5 Ke6 (38... Ra8 {might work better.} 39. Rb5 Rc7) 39. e4 $18 Ra7 40. Rc6+ Ke7 41. a5 {[%cal Ba4a5,Ba5b6][%mdl 32]} h5 42. h4 Ke8 43. Rb6 Rxb6 (43... Rba8 44. Kxb4 Rc7) 44. axb6 {KR-KR} Rb7 45. Rb5 (45. Kxb4 Rxb6+ 46. Rb5 Rd6 $11) 45... Kd7 46. Kxb4 Kc6 {[#]} 47. Ka5 ({White has to play} 47. Kc4 $1 $18 {aiming for Rc5+.} Rxb6 48. Rxb6+ Kxb6 49. Kd5) 47... Rb8 $14 48. f4 Ra8+ 49. Kb4 Ra1 {...Rb1+ is the strong threat.} 50. Rc5+ (50. fxe5 $2 Rb1+ 51. Kc4 Rxb5 $19) ({White should play} 50. Kc3 $1 $14 Ra3+ (50... Kxb5 $2 51. b7 $18) 51. Kd2 (51. Kb4 Ra1 $11)) 50... Kxb6 $11 51. Rc3 (51. fxe5 $2 {loses.} Rb1+ 52. Kc4 Rc1+ 53. Kd4 Rxc5 $19) 51... exf4 52. gxf4 Rh1 (52... Rf1 $5 53. f5 $8 Rf4 $11) 53. Kc4 Rxh4 54. Rf3 Kc6 55. Kd4 Kd6 56. f5 Rg4 57. Ra3 Rg1 58. Ra6+ Ke7 59. Ra7+ Kd6 60. Ra6+ {The position is equal.} Kd7 61. Ra7+ Kd6 62. Ra6+ Kd7 {White really could win this.   Weighted Error Value: White=0.16 (very precise) /Black=0.22 (precise)   Mistake:       	White=1     	Black=5      Inaccurate:     	White=3     	Black=6      OK:         	White=28    	Black=15     Best:        	White=1     	Black=4      Strong:       	---       	Black=1} 1/2-1/2

[Event "Silves Open 2025"]
[Site "Fissul"]
[Date "2025.03.03"]
[Round "4.16"]
[White "Dias, Ivo Rodrigues"]
[Black "Leal, Jose Alberto"]
[Result "1-0"]
[Annotator "TA"]
[ECO "C10"]
[WhiteElo "2097"]
[BlackElo "1688"]
[PlyCount "59"]
[EventDate "2025.03.03"]
[EventType "swiss"]
[EventCountry "POR"]
[SourceTitle "playchess.com"]
[Source "ChessBase"]
[SourceQuality "1"]
[TimeControl "5400+30"]

{[%evp 16,59,49,52,54,55,59,51,77,48,133,51,128,120,175,179,162,139,145,139,139,115,193,140,158,134,132,146,158,149,379,396,402,397,490,437,432,429,433,166,429,403,447,439,555,413]} 1. e4 {[%emt 0:00:05]} e6 {[%emt 0:00:10]} 2. d4 {[%emt 0:00:33]} d5 {[%emt 0:00:15]} 3. Nc3 {[%emt 0:00:39]} dxe4 {[%emt 0:02:45]} 4. Nxe4 {[%emt 0:00:20]} Bd7 {[%emt 0:00:16]} 5. Nf3 {[%emt 0:00:10]} Bc6 {[%emt 0:00:20]} 6. Bd3 {[%emt 0:00:15]} Nd7 {[%emt 0:00:15]} 7. O-O {[%emt 0:00:32]} Ngf6 {[%emt 0:00:38]} 8. Ng3 {[%emt 0:00:55]} Bxf3 {[%emt 0:01:49]} 9. Qxf3 {[%emt 0:00:03]} c6 {[%emt 0:01:25] C10: French with 3 Nc3: Unusual Black 3rd moves and 3...dxe4.} 10. Re1 {[%emt 0:00:27]} Be7 {[%emt 0:04:15]} 11. c3 {[%emt 0:02:32]} Qb6 {[%emt 0:10:30] White is slightly better.} 12. b3 {[%emt 0:08:22]} O-O-O $146 {[%emt 0:06:03]} (12... O-O $14) (12... O-O 13. Bb2 c5 14. dxc5 Nxc5 15. Bc2 Rac8 16. c4 Rfd8 17. Bc3 a5 18. Re5 Ncd7 {1-0 Miesbauer,J (1991)-Havelka,O (1642) CZE-ch U14 Kouty nad Desnou 2014 (2)}) 13. Nf1 {[%emt 0:03:50]} (13. b4 $16) 13... Bf8 {[%emt 0:02:34]} (13... Rdg8 $14) 14. Ne3 {[%emt 0:01:37] and Nc4 would now be decisive White has more active pieces.} Qc7 {[%emt 0:07:23] [#]} (14... Qa5 $16) 15. Nc4 $1 $18 {[%emt 0:01:56]} Bd6 {[%emt 0:04:42] Against Bf4} 16. Nxd6+ {[%emt 0:00:41]} Qxd6 {[%emt 0:00:16]} 17. Bf4 {[%emt 1:16:03]} Qd5 18. Qe2 Qh5 (18... Nf8 $16 19. b4 Ng6) 19. f3 (19. Qb2 $18) 19... Nd5 20. Bd2 g5 21. g3 {Against Nf4} Rhg8 {[%cal Bh8g8,Bg8g3,Bg3f3,Bf3f2,Bf2g2][%mdl 32]} 22. c4 Nf4 {[#] A mistake that costs the game.} (22... Nc7 $16 23. Bb4 Rge8) 23. gxf4 gxf4+ 24. Kh1 Rg3 25. Bxf4 {[%emt 0:00:00]} Qxf3+ {[%emt 0:28:52]} 26. Qxf3 {[%emt 0:00:00]} Rxf3 {[%emt 0:00:09]} 27. Bg5 {[%emt 0:00:00]} (27. Bxh7 Rxf4 28. Re4 Rf2 $11) (27. Be3) 27... Rg8 $2 {[%emt 0:00:42]} (27... Rxd3 {was called for.} 28. Bxd8 Kxd8) 28. Be2 {[%emt 0:00:00]} (28. Bxh7 Rxg5 29. Rf1 Rh3 30. Rxf7 Rgh5 $11) 28... Rf2 {[%emt 0:00:30]} 29. Be3 {[%emt 0:00:00]} Rfg2 {[%emt 0:00:30]} 30. Rg1 {[%emt 0:00:00] Weighted Error Value: White=0.35/Black=0.61  Loses game:     	---       	Black=1      Mistake:       	White=3     	Black=5      Inaccurate:     	White=1     	Black=1      OK:         	White=4     	Black=5      Best:        	White=2     	---} 1-0

[Event "Silves Open 2025"]
[Site "Fissul"]
[Date "2025.03.03"]
[Round "4.17"]
[White "Santos, Joao Artur Almeida"]
[Black "Boesel, Alexander"]
[Result "1-0"]
[Annotator "TA"]
[ECO "B10"]
[WhiteElo "1950"]
[BlackElo "2046"]
[PlyCount "75"]
[EventDate "2025.03.03"]
[EventType "swiss"]
[EventCountry "POR"]
[SourceTitle "playchess.com"]
[Source "ChessBase"]
[SourceQuality "1"]
[TimeControl "5400+30"]

{[%evp 9,75,-2,18,16,22,0,0,-4,32,33,42,9,2,9,34,35,76,86,98,102,99,94,93,83,83,57,110,99,92,94,204,66,58,47,46,28,55,18,18,18,27,0,283,297,300,300,286,282,275,199,194,191,191,179,339,339,324,297,297,292,296,271,338,313,607,587,581,559]} 1. e4 {[%emt 1:31:00]} c6 {[%emt 1:31:00]} 2. Nf3 {[%emt 0:00:30][%cal Bg1f3,Bf3d2,Bd2c4,Bc4e5][%mdl 32]} d5 {[%emt 0:00:30]} 3. d3 {[%emt 0:00:30]} dxe4 {[%emt 0:00:30]} 4. dxe4 {[%emt 0:00:30]} Qxd1+ {[%emt 0:00:30]} 5. Kxd1 {[%emt 0:00:30]} Nf6 {[%emt 0:00:30]} 6. Nfd2 {[%emt 0:00:30] B10: Caro-Kann: 2 d3 and 2 c4.} e5 {[%emt 0:00:30]} 7. a4 {[%emt 0:00:30]} Ng4 {[%emt 0:00:30]} 8. Ke2 {[%emt 0:00:30] The position is equal.} Be6 {[%emt 0:00:30]} 9. f3 {[%emt 0:00:30]} Nf6 {[%emt 0:00:30]} 10. Na3 $146 {[%emt 0:00:30]} (10. Ke1 Bc5 11. Bc4 Bxc4 12. Nxc4 Nfd7 13. Nbd2 Na6 14. c3 Nc7 15. Nb3 Ne6 16. Nxc5 Nexc5 {1-0 Nepomniachtchi,I (2767)-Popov,I (2636) Wch Blitz Moscow 2019 (5)}) 10... Nbd7 {[%emt 0:00:30]} 11. Ndc4 {[%emt 0:00:30]} Bc5 {[%emt 0:00:30]} 12. Be3 {[%emt 0:00:30]} O-O {[%emt 0:00:30] [#]} 13. Nxe5 $1 {[%emt 0:00:30]} Bxa3 {[%emt 0:00:30]} (13... Bxe3 14. Nxd7) 14. Nxd7 {[%emt 0:00:30]} Bxb2 {[%emt 0:00:30]} 15. Nxf8 {[%emt 0:00:30] A sharp opening} Bxa1 {[%emt 0:00:30]} 16. Nxe6 {[%emt 0:00:30]} fxe6 {[%emt 0:00:30]} 17. Kf2 {[%emt 0:00:30]} Bc3 {[%emt 0:00:30]} ({Black should try} 17... Rf8 $14) 18. Bc4 $16 {[%emt 0:00:30]} Kf7 {[%emt 0:00:30]} 19. Rd1 {[%emt 0:00:30] g4 would now be deadly. Prevents Rd8.} Be5 {[%emt 0:00:30]} (19... Ba5 $16) 20. Rb1 {[%emt 0:00:30]} ({White should try} 20. f4 $1 $18 {[%cal Rf4e5]} Bc7 (20... Nxe4+ $2 21. Kf3 $18) 21. Kf3) 20... b6 $14 {[%emt 0:00:30]} 21. Rd1 $36 {[%emt 0:00:30][%mdl 2048] White has some pressure.} Ke7 {[%emt 0:00:30]} 22. a5 {[%emt 0:00:30]} Bc7 {[%emt 0:00:30]} 23. a6 h6 24. g3 Bd6 25. c3 {[%cal Od1d6]} Rd8 $2 {[%mdl 8192] [#]} (25... Nd7 $11 {and Black stays safe.}) 26. e5 $1 $18 {[%mdl 512]} Bxe5 27. Rxd8 Kxd8 {[#]} 28. Bxb6+ {[%mdl 4608] Endgame KBB-KBN} Kc8 (28... axb6 $2 29. a7 $18 (29. Bxe6 $2 {is the wrong capture.} Kc7 $19)) (28... Kd7 29. Bxa7) 29. Bxe6+ Kb8 30. Bc5 Ne8 31. Bd7 {This pair of bishops is nice.} Bd6 $2 (31... Nc7 {was called for.}) 32. Bxd6+ Nxd6 33. Bxc6 {KB-KN. White is two pawns up.} Kc7 34. Be4 Kb6 35. Bd3 Kc5 36. Ke3 Ne8 $2 (36... Kd5 37. Kf4 Ke6) 37. Ke4 Nf6+ 38. Kf5 {Weighted Error Value: White=0.14 (very precise) /Black=0.45  Loses game:     	---       	Black=1      Mistake:       	White=1     	Black=4      Inaccurate:     	White=4     	Black=3      OK:         	White=13    	Black=7      Best:        	White=4     	Black=4      Brilliant:      	White=2     	---} 1-0